[Event "*** Titled Tuesday Blitz"]
[Site "Chess.com"]
[Date "2020.11.24"]
[Round "7"]
[White "Leonid_Starozhilov"]
[Black "Szparu"]
[Result "0-1"]
[WhiteElo "2652"]
[BlackElo "2522"]
[TimeControl "180+1"]
[EndTime "11:35:16 PST"]
[Termination "Szparu won by checkmate"]

1. e4 {[%clk 0:03:00.9]} 1... e6 {[%clk 0:02:57.2]} 2. d4 {[%clk 0:03:00.4]}
2... d5 {[%clk 0:02:57.4]} 3. e5 {[%clk 0:03:00.9]} 3... c5 {[%clk 0:02:57.4]}
4. c3 {[%clk 0:03:01.6]} 4... Nc6 {[%clk 0:02:57.4]} 5. Nf3 {[%clk 0:03:02.2]}
5... Bd7 {[%clk 0:02:56.9]} 6. a3 {[%clk 0:03:02.3]} 6... f6 {[%clk 0:02:53.5]}
7. Bd3 {[%clk 0:03:02.1]} 7... c4 {[%clk 0:02:33.1]} 8. Bc2 {[%clk 0:03:01.9]}
8... Qb6 {[%clk 0:02:10.9]} 9. O-O {[%clk 0:02:48.9]} 9... O-O-O {[%clk
0:02:10.8]} 10. b3 {[%clk 0:02:44.6]} 10... fxe5 {[%clk 0:02:08.4]} 11. bxc4
{[%clk 0:02:41.4]} 11... e4 {[%clk 0:02:05.4]} 12. c5 {[%clk 0:02:36]} 12... Qc7
{[%clk 0:01:58]} 13. Ng5 {[%clk 0:02:35.1]} 13... Nh6 {[%clk 0:01:54.6]} 14. a4
{[%clk 0:02:32.9]} 14... Be7 {[%clk 0:01:33.3]} 15. Na3 {[%clk 0:02:32]} 15...
a6 {[%clk 0:01:30.1]} 16. Nb5 {[%clk 0:02:14.4]} 16... Qb8 {[%clk 0:01:11.7]}
17. Qe2 {[%clk 0:01:39]} 17... e5 {[%clk 0:01:06.8]} 18. h3 {[%clk 0:00:54.2]}
18... exd4 {[%clk 0:00:49.4]} 19. Nxd4 {[%clk 0:00:50.3]} 19... Qe5 {[%clk
0:00:47.1]} 20. f4 {[%clk 0:00:42.6]} 20... Nxd4 {[%clk 0:00:36.4]} 21. cxd4
{[%clk 0:00:41]} 21... Qxd4+ {[%clk 0:00:36.5]} 22. Be3 {[%clk 0:00:41.6]} 22...
Qf6 {[%clk 0:00:37]} 23. Rab1 {[%clk 0:00:34.4]} 23... Bc6 {[%clk 0:00:32.4]}
24. Rb6 {[%clk 0:00:27.5]} 24... Nf5 {[%clk 0:00:32.6]} 25. Rfb1 {[%clk
0:00:23.5]} 25... Nxe3 {[%clk 0:00:29.5]} 26. Qxe3 {[%clk 0:00:24.4]} 26... d4
{[%clk 0:00:28]} 27. Qg3 {[%clk 0:00:24.4]} 27... d3 {[%clk 0:00:24.2]} 28. Qg4+
{[%clk 0:00:18]} 28... Rd7 {[%clk 0:00:20.7]} 29. Nxe4 {[%clk 0:00:11.7]} 29...
Qd4+ {[%clk 0:00:17]} 30. Kh2 {[%clk 0:00:11.5]} 30... dxc2 {[%clk 0:00:12.9]}
31. Rc1 {[%clk 0:00:07.2]} 31... Bxe4 {[%clk 0:00:12.2]} 32. c6 {[%clk 0:00:07]}
32... bxc6 {[%clk 0:00:08.8]} 33. Rxa6 {[%clk 0:00:05.2]} 33... Rd8 {[%clk
0:00:08.4]} 34. Qg3 {[%clk 0:00:03.5]} 34... Qd3 {[%clk 0:00:05.7]} 35. Qg4
{[%clk 0:00:03]} 35... Qxa6 {[%clk 0:00:05.4]} 36. Re1 {[%clk 0:00:03.3]} 36...
Qd3 {[%clk 0:00:05.4]} 37. a5 {[%clk 0:00:02.8]} 37... Bf5 {[%clk 0:00:05.6]}
38. Qg3 {[%clk 0:00:03]} 38... Qxg3+ {[%clk 0:00:05.6]} 39. Kxg3 {[%clk
0:00:03.9]} 39... Rd1 {[%clk 0:00:05.9]} 40. Rxe7 {[%clk 0:00:04.8]} 40... c1=Q
{[%clk 0:00:06.3]} 41. a6 {[%clk 0:00:05.2]} 41... Qc3+ {[%clk 0:00:06.7]} 42.
Kh4 {[%clk 0:00:05.7]} 42... Qf6+ {[%clk 0:00:06.2]} 43. Kh5 {[%clk 0:00:06]}
43... Qxe7 {[%clk 0:00:06.2]} 44. g4 {[%clk 0:00:06.9]} 44... Bg6# {[%clk
0:00:05.9]} 0-1

[Event "*** Titled Tuesday Blitz"]
[Site "Chess.com"]
[Date "2020.11.24"]
[Round "7"]
[White "AlexSuv"]
[Black "Ze-Pequeno"]
[Result "1-0"]
[WhiteElo "2530"]
[BlackElo "2281"]
[TimeControl "180+1"]
[EndTime "11:35:16 PST"]
[Termination "AlexSuv won on time"]

1. d4 {[%clk 0:03:00]} 1... Nf6 {[%clk 0:02:59.7]} 2. c4 {[%clk 0:02:59.8]} 2...
Nc6 {[%clk 0:02:59.9]} 3. Nf3 {[%clk 0:02:54.8]} 3... e6 {[%clk 0:02:59.6]} 4.
a3 {[%clk 0:02:54.2]} 4... d6 {[%clk 0:02:59.3]} 5. Nc3 {[%clk 0:02:53.7]} 5...
g6 {[%clk 0:02:59.7]} 6. e4 {[%clk 0:02:53.6]} 6... Bg7 {[%clk 0:03:00.2]} 7.
Be2 {[%clk 0:02:54.3]} 7... O-O {[%clk 0:02:59]} 8. O-O {[%clk 0:02:54.8]} 8...
Re8 {[%clk 0:02:59.2]} 9. h3 {[%clk 0:02:51.4]} 9... e5 {[%clk 0:02:58.1]} 10.
d5 {[%clk 0:02:51.7]} 10... Nd4 {[%clk 0:02:57.2]} 11. Be3 {[%clk 0:02:48.3]}
11... c5 {[%clk 0:02:56.1]} 12. dxc6 {[%clk 0:02:46.1]} 12... bxc6 {[%clk
0:02:56.1]} 13. Nxd4 {[%clk 0:02:44.3]} 13... exd4 {[%clk 0:02:56]} 14. Bxd4
{[%clk 0:02:45.2]} 14... Nxe4 {[%clk 0:02:55.5]} 15. Nxe4 {[%clk 0:02:42.9]}
15... Rxe4 {[%clk 0:02:52.3]} 16. Bxg7 {[%clk 0:02:42]} 16... Kxg7 {[%clk
0:02:53.2]} 17. Rc1 {[%clk 0:02:27.8]} 17... Qf6 {[%clk 0:02:51.2]} 18. Bf3
{[%clk 0:02:20.4]} 18... Rd4 {[%clk 0:02:49.1]} 19. Qb3 {[%clk 0:02:21]} 19...
Rd2 {[%clk 0:01:33.3]} 20. Rc2 {[%clk 0:01:58.1]} 20... Rxc2 {[%clk 0:01:27]}
21. Qxc2 {[%clk 0:01:59]} 21... Rb8 {[%clk 0:01:26.3]} 22. b4 {[%clk 0:01:57.2]}
22... c5 {[%clk 0:01:24.4]} 23. b5 {[%clk 0:01:52.3]} 23... Bxh3 {[%clk
0:01:22.4]} 24. Rd1 {[%clk 0:01:45.5]} 24... Bf5 {[%clk 0:01:18.2]} 25. Qd2
{[%clk 0:01:45.5]} 25... Rd8 {[%clk 0:01:17.3]} 26. a4 {[%clk 0:01:46]} 26... h5
{[%clk 0:01:15.6]} 27. a5 {[%clk 0:01:36.5]} 27... h4 {[%clk 0:01:13.2]} 28. b6
{[%clk 0:01:36.7]} 28... axb6 {[%clk 0:01:13.4]} 29. a6 {[%clk 0:01:37.1]} 29...
d5 {[%clk 0:00:48.9]} 30. Bxd5 {[%clk 0:01:32.2]} 30... Be4 {[%clk 0:00:39.9]}
31. Qe3 {[%clk 0:01:16]} 31... Bxd5 {[%clk 0:00:37.4]} 32. cxd5 {[%clk
0:01:16.3]} 32... Ra8 {[%clk 0:00:17.5]} 33. d6 {[%clk 0:01:13.3]} 33... Rxa6
{[%clk 0:00:16.2]} 34. d7 {[%clk 0:01:13.5]} 34... Ra8 {[%clk 0:00:16.6]} 35.
Qe8 {[%clk 0:00:40.4]} 35... Rd8 {[%clk 0:00:16.1]} 36. Re1 {[%clk 0:00:41.1]}
36... c4 {[%clk 0:00:15.6]} 37. Re7 {[%clk 0:00:40.1]} 37... c3 {[%clk
0:00:04.3]} 38. Qxd8 {[%clk 0:00:35.8]} 38... c2 {[%clk 0:00:04.5]} 39. Qh8+
{[%clk 0:00:19.5]} 39... Kxh8 {[%clk 0:00:03.5]} 40. d8=Q+ {[%clk 0:00:19.6]}
40... Kg7 {[%clk 0:00:03.8]} 41. Qc7 {[%clk 0:00:15.9]} 41... Qxe7 {[%clk
0:00:02.5]} 42. Qxe7 {[%clk 0:00:14.1]} 42... c1=Q+ {[%clk 0:00:01.5]} 43. Kh2
{[%clk 0:00:14.4]} 1-0

[Event "*** Titled Tuesday Blitz"]
[Site "Chess.com"]
[Date "2020.11.24"]
[Round "7"]
[White "Cambek64"]
[Black "CakeinSpace2002"]
[Result "1-0"]
[WhiteElo "2307"]
[BlackElo "2383"]
[TimeControl "180+1"]
[EndTime "11:35:16 PST"]
[Termination "Cambek64 won by resignation"]

1. d4 {[%clk 0:02:58.2]} 1... Nf6 {[%clk 0:02:59.6]} 2. c4 {[%clk 0:02:57.4]}
2... g6 {[%clk 0:02:59.7]} 3. Nc3 {[%clk 0:02:57.5]} 3... Bg7 {[%clk 0:02:59.6]}
4. e4 {[%clk 0:02:57.5]} 4... d6 {[%clk 0:03:00]} 5. Be2 {[%clk 0:02:57.8]} 5...
O-O {[%clk 0:03:00.2]} 6. g4 {[%clk 0:02:58.1]} 6... c5 {[%clk 0:02:59]} 7. d5
{[%clk 0:02:57.4]} 7... e6 {[%clk 0:02:58.6]} 8. g5 {[%clk 0:02:57.5]} 8... Ne8
{[%clk 0:02:56.7]} 9. h4 {[%clk 0:02:50.5]} 9... exd5 {[%clk 0:02:55.6]} 10.
cxd5 {[%clk 0:02:49.8]} 10... Nc7 {[%clk 0:02:55]} 11. a4 {[%clk 0:02:48.3]}
11... Re8 {[%clk 0:02:54.3]} 12. f3 {[%clk 0:02:40.9]} 12... a6 {[%clk
0:02:51.3]} 13. Nh3 {[%clk 0:02:40.5]} 13... Bd7 {[%clk 0:02:38.2]} 14. Nf2
{[%clk 0:02:40.5]} 14... b5 {[%clk 0:02:37.9]} 15. axb5 {[%clk 0:02:39.6]} 15...
axb5 {[%clk 0:02:38.7]} 16. Rxa8 {[%clk 0:02:39.3]} 16... Nxa8 {[%clk
0:02:39.6]} 17. Kf1 {[%clk 0:02:20.7]} 17... b4 {[%clk 0:02:36.3]} 18. Nb1
{[%clk 0:02:19.2]} 18... Qa5 {[%clk 0:02:26.8]} 19. Nd2 {[%clk 0:02:17.3]} 19...
Nb6 {[%clk 0:02:23.7]} 20. Nc4 {[%clk 0:02:16.7]} 20... Nxc4 {[%clk 0:02:21.3]}
21. Bxc4 {[%clk 0:02:17]} 21... Bb5 {[%clk 0:02:20.5]} 22. Qe2 {[%clk
0:02:17.3]} 22... Bxc4 {[%clk 0:02:19.3]} 23. Qxc4 {[%clk 0:02:17.8]} 23... Nd7
{[%clk 0:02:18]} 24. Kg2 {[%clk 0:02:15.7]} 24... Ne5 {[%clk 0:02:16.6]} 25. Qe2
{[%clk 0:02:14.9]} 25... c4 {[%clk 0:01:57.9]} 26. Be3 {[%clk 0:02:07.6]} 26...
Nd3 {[%clk 0:01:48.1]} 27. Nxd3 {[%clk 0:01:56.2]} 27... cxd3 {[%clk 0:01:49]}
28. Qxd3 {[%clk 0:01:56.4]} 28... Bxb2 {[%clk 0:01:48.7]} 29. Bd4 {[%clk
0:01:49.6]} 29... Bxd4 {[%clk 0:01:41]} 30. Qxd4 {[%clk 0:01:47.7]} 30... b3
{[%clk 0:01:39.9]} 31. Rb1 {[%clk 0:01:38.2]} 31... Rb8 {[%clk 0:01:34.8]} 32.
Rb2 {[%clk 0:01:36.1]} 32... Qe1 {[%clk 0:01:17.4]} 33. Qf2 {[%clk 0:01:35.3]}
33... Qd1 {[%clk 0:01:13]} 34. Kg3 {[%clk 0:01:30]} 34... Rc8 {[%clk 0:01:04.3]}
35. Qe3 {[%clk 0:01:29.5]} 35... Rb8 {[%clk 0:00:43.3]} 36. Kg4 {[%clk
0:01:19.7]} 36... Kf8 {[%clk 0:00:38.1]} 37. h5 {[%clk 0:01:18.6]} 37... gxh5+
{[%clk 0:00:37.8]} 38. Kxh5 {[%clk 0:01:17]} 38... Qh1+ {[%clk 0:00:35.7]} 39.
Kg4 {[%clk 0:01:15.4]} 39... Qd1 {[%clk 0:00:35.8]} 40. Qc3 {[%clk 0:01:12.2]}
40... Kg8 {[%clk 0:00:34.3]} 41. Kf4 {[%clk 0:01:03.2]} 41... Rb5 {[%clk
0:00:26.9]} 42. Kf5 {[%clk 0:00:51]} 42... Rc5 {[%clk 0:00:25.1]} 43. Qxb3
{[%clk 0:00:46.1]} 43... Qd4 {[%clk 0:00:23.7]} 44. f4 {[%clk 0:00:42.2]} 44...
Rc4 {[%clk 0:00:21.7]} 45. Re2 {[%clk 0:00:30.9]} 45... Kg7 {[%clk 0:00:20.8]}
46. Qb2 {[%clk 0:00:29.4]} 46... Rc3 {[%clk 0:00:18.7]} 47. Rc2 {[%clk
0:00:28.2]} 1-0

[Event "*** Titled Tuesday Blitz"]
[Site "Chess.com"]
[Date "2020.11.24"]
[Round "7"]
[White "Euwe1234"]
[Black "Ermito2020"]
[Result "1-0"]
[WhiteElo "2503"]
[BlackElo "2611"]
[TimeControl "180+1"]
[EndTime "11:35:20 PST"]
[Termination "Euwe1234 won on time"]

1. e4 {[%clk 0:03:00.9]} 1... c5 {[%clk 0:02:59.1]} 2. Nf3 {[%clk 0:02:59.8]}
2... d6 {[%clk 0:02:59.7]} 3. d4 {[%clk 0:02:59.3]} 3... cxd4 {[%clk 0:03:00.6]}
4. Nxd4 {[%clk 0:03:00.2]} 4... Nf6 {[%clk 0:03:01]} 5. Nc3 {[%clk 0:03:00.7]}
5... Nc6 {[%clk 0:03:01.4]} 6. Bg5 {[%clk 0:03:00.1]} 6... e6 {[%clk 0:03:01.5]}
7. Qd2 {[%clk 0:02:59]} 7... a6 {[%clk 0:03:02]} 8. O-O-O {[%clk 0:02:49.8]}
8... Bd7 {[%clk 0:03:02.6]} 9. f4 {[%clk 0:02:37]} 9... Be7 {[%clk 0:03:03]} 10.
Nf3 {[%clk 0:02:32.4]} 10... b5 {[%clk 0:03:02.7]} 11. Bxf6 {[%clk 0:02:19.9]}
11... gxf6 {[%clk 0:03:03.6]} 12. f5 {[%clk 0:02:18.9]} 12... Qb6 {[%clk
0:03:02.5]} 13. Kb1 {[%clk 0:02:17.6]} 13... O-O-O {[%clk 0:03:00.8]} 14. g3
{[%clk 0:02:17.5]} 14... Kb8 {[%clk 0:02:56.8]} 15. fxe6 {[%clk 0:02:14.6]}
15... fxe6 {[%clk 0:02:56.4]} 16. Bh3 {[%clk 0:02:14.3]} 16... Na5 {[%clk
0:02:45.4]} 17. Nd4 {[%clk 0:02:02.2]} 17... b4 {[%clk 0:02:22.4]} 18. Nce2
{[%clk 0:02:00.4]} 18... e5 {[%clk 0:02:22.1]} 19. Bxd7 {[%clk 0:01:54.2]} 19...
Rxd7 {[%clk 0:02:22.2]} 20. Nf5 {[%clk 0:01:53.2]} 20... Nc4 {[%clk 0:02:19.6]}
21. Qd5 {[%clk 0:01:52.5]} 21... Rc8 {[%clk 0:02:16.5]} 22. Nc1 {[%clk
0:01:51.9]} 22... Bf8 {[%clk 0:02:07.6]} 23. Nb3 {[%clk 0:01:47.3]} 23... Rdc7
{[%clk 0:02:02.9]} 24. Rc1 {[%clk 0:01:39.2]} 24... a5 {[%clk 0:02:02.3]} 25.
Nd2 {[%clk 0:01:32.7]} 25... Nxd2+ {[%clk 0:01:23.8]} 26. Qxd2 {[%clk
0:01:31.2]} 26... a4 {[%clk 0:01:24.7]} 27. Rhe1 {[%clk 0:01:20.7]} 27... Rc4
{[%clk 0:01:23]} 28. Re3 {[%clk 0:01:16.2]} 28... Qc6 {[%clk 0:01:22]} 29. Qd3
{[%clk 0:01:07.3]} 29... Kb7 {[%clk 0:01:12.8]} 30. g4 {[%clk 0:00:58.5]} 30...
Rc5 {[%clk 0:01:10.7]} 31. Rh3 {[%clk 0:00:55.7]} 31... Rc7 {[%clk 0:01:09.6]}
32. Ne3 {[%clk 0:00:52.8]} 32... b3 {[%clk 0:00:56.7]} 33. axb3 {[%clk
0:00:44.6]} 33... axb3 {[%clk 0:00:57.6]} 34. Qxb3+ {[%clk 0:00:41.9]} 34... Rb5
{[%clk 0:00:58.1]} 35. Nd5 {[%clk 0:00:27.4]} 35... Rxb3 {[%clk 0:00:50.8]} 36.
Rxb3+ {[%clk 0:00:28.3]} 36... Kc8 {[%clk 0:00:42.9]} 37. Rc3 {[%clk 0:00:28.3]}
37... Qxc3 {[%clk 0:00:42.8]} 38. Nxc3 {[%clk 0:00:29.1]} 38... Rg7 {[%clk
0:00:42.2]} 39. h3 {[%clk 0:00:28.7]} 39... h5 {[%clk 0:00:42.3]} 40. gxh5
{[%clk 0:00:28.3]} 40... Rh7 {[%clk 0:00:42.2]} 41. Rf1 {[%clk 0:00:28.3]} 41...
Be7 {[%clk 0:00:41.5]} 42. Rf5 {[%clk 0:00:27.9]} 42... Kd7 {[%clk 0:00:38.9]}
43. Nd5 {[%clk 0:00:28.1]} 43... Ke6 {[%clk 0:00:39.5]} 44. Ne3 {[%clk
0:00:28.1]} 44... Bd8 {[%clk 0:00:39.2]} 45. c4 {[%clk 0:00:26.4]} 45... Rg7
{[%clk 0:00:35.7]} 46. Ng4 {[%clk 0:00:26.3]} 46... Rc7 {[%clk 0:00:29.1]} 47.
h6 {[%clk 0:00:24.9]} 47... Rh7 {[%clk 0:00:28.4]} 48. Kc2 {[%clk 0:00:23.5]}
48... Rc7 {[%clk 0:00:27.9]} 49. Kd3 {[%clk 0:00:22.7]} 49... Rb7 {[%clk
0:00:27.8]} 50. b4 {[%clk 0:00:21.7]} 1-0

[Event "*** Titled Tuesday Blitz"]
[Site "Chess.com"]
[Date "2020.11.24"]
[Round "7"]
[White "Taktikmonster"]
[Black "kakorrhaphiophobie"]
[Result "1-0"]
[WhiteElo "2174"]
[BlackElo "2304"]
[TimeControl "180+1"]
[EndTime "11:35:21 PST"]
[Termination "Taktikmonster won by resignation"]

1. e4 {[%clk 0:03:00.9]} 1... e6 {[%clk 0:02:59.9]} 2. d4 {[%clk 0:03:00.4]}
2... d5 {[%clk 0:03:00.1]} 3. Nd2 {[%clk 0:03:01]} 3... Nc6 {[%clk 0:02:59.4]}
4. Ngf3 {[%clk 0:03:00]} 4... Nf6 {[%clk 0:02:58.7]} 5. e5 {[%clk 0:03:00.1]}
5... Nd7 {[%clk 0:02:59.3]} 6. c3 {[%clk 0:02:48.8]} 6... f6 {[%clk 0:02:59.2]}
7. exf6 {[%clk 0:02:48.7]} 7... Qxf6 {[%clk 0:02:59.8]} 8. Bd3 {[%clk
0:02:49.2]} 8... Bd6 {[%clk 0:03:00]} 9. Nf1 {[%clk 0:02:49]} 9... e5 {[%clk
0:02:48.9]} 10. dxe5 {[%clk 0:02:16.3]} 10... Ndxe5 {[%clk 0:02:49.2]} 11. Be2
{[%clk 0:02:15.4]} 11... Be6 {[%clk 0:02:46.3]} 12. Ne3 {[%clk 0:02:13.2]} 12...
O-O-O {[%clk 0:02:23.6]} 13. Nd4 {[%clk 0:01:24]} 13... Rhf8 {[%clk 0:02:02.6]}
14. Nxe6 {[%clk 0:01:22.6]} 14... Qxf2+ {[%clk 0:01:03.4]} 15. Kd2 {[%clk
0:01:20.7]} 15... d4 {[%clk 0:00:49.5]} 16. cxd4 {[%clk 0:01:00.1]} 16... Nxd4
{[%clk 0:00:29.4]} 17. Nxd4 {[%clk 0:00:55.7]} 17... Bc5 {[%clk 0:00:26.5]} 18.
Kc2 {[%clk 0:00:39.1]} 18... Rxd4 {[%clk 0:00:25.7]} 19. Qe1 {[%clk 0:00:23.2]}
19... Qf7 {[%clk 0:00:20.4]} 20. Rf1 {[%clk 0:00:21.1]} 20... Qg6+ {[%clk
0:00:19.8]} 21. Kb3 {[%clk 0:00:18.5]} 21... Rb4+ {[%clk 0:00:19.7]} 22. Qxb4
{[%clk 0:00:16.1]} 22... Bxb4 {[%clk 0:00:20.6]} 23. Kxb4 {[%clk 0:00:14.1]}
23... Rxf1 {[%clk 0:00:19.8]} 24. Bxf1 {[%clk 0:00:15]} 24... Qe4+ {[%clk
0:00:19.7]} 25. Kc3 {[%clk 0:00:15.4]} 25... Qc6+ {[%clk 0:00:17.6]} 26. Kd2
{[%clk 0:00:14.5]} 26... Qd6+ {[%clk 0:00:17.7]} 27. Ke1 {[%clk 0:00:13.7]}
27... Qb4+ {[%clk 0:00:16.2]} 28. Bd2 {[%clk 0:00:13.8]} 28... Qxb2 {[%clk
0:00:15.9]} 29. Rd1 {[%clk 0:00:14.1]} 29... c6 {[%clk 0:00:14.8]} 30. g3 {[%clk
0:00:13.6]} 30... Nf3+ {[%clk 0:00:13.6]} 31. Ke2 {[%clk 0:00:12.9]} 31... Nd4+
{[%clk 0:00:13.8]} 32. Ke1 {[%clk 0:00:13]} 32... Nf3+ {[%clk 0:00:13.9]} 33.
Ke2 {[%clk 0:00:13.4]} 33... Nxh2 {[%clk 0:00:14.4]} 34. Bh3+ {[%clk 0:00:12.7]}
34... Kc7 {[%clk 0:00:14.4]} 35. Rh1 {[%clk 0:00:12]} 35... Qb5+ {[%clk
0:00:11.1]} 36. Kf2 {[%clk 0:00:12]} 36... Qd3 {[%clk 0:00:10.5]} 37. Be1 {[%clk
0:00:06.2]} 37... g5 {[%clk 0:00:04.3]} 38. Rxh2 {[%clk 0:00:06]} 38... h5
{[%clk 0:00:04.8]} 39. Bf5 {[%clk 0:00:05.9]} 39... Qd4 {[%clk 0:00:01.2]} 40.
Rxh5 {[%clk 0:00:06]} 40... Qb2+ {[%clk 0:00:01.6]} 41. Kf3 {[%clk 0:00:05]}
41... Qf6 {[%clk 0:00:02.1]} 42. Rh7+ {[%clk 0:00:05.2]} 42... Kb6 {[%clk
0:00:02.1]} 43. Bf2 {[%clk 0:00:05.5]} 43... Qe5 {[%clk 0:00:02.8]} 44. Nc4+
{[%clk 0:00:05.1]} 44... Kb5 {[%clk 0:00:02.7]} 45. Nxe5 {[%clk 0:00:06]} 1-0

[Event "*** Titled Tuesday Blitz"]
[Site "Chess.com"]
[Date "2020.11.24"]
[Round "7"]
[White "ural58"]
[Black "Bulldog167"]
[Result "1-0"]
[WhiteElo "2441"]
[BlackElo "2609"]
[TimeControl "180+1"]
[EndTime "11:35:22 PST"]
[Termination "ural58 won by resignation"]

1. e4 {[%clk 0:02:59.8]} 1... c6 {[%clk 0:02:57.9]} 2. b3 {[%clk 0:02:59.3]}
2... d5 {[%clk 0:02:58.8]} 3. Qe2 {[%clk 0:02:59.5]} 3... dxe4 {[%clk
0:02:48.5]} 4. Nc3 {[%clk 0:02:59.5]} 4... g6 {[%clk 0:02:43.2]} 5. Bb2 {[%clk
0:02:58.4]} 5... Bg7 {[%clk 0:02:43]} 6. O-O-O {[%clk 0:02:58.1]} 6... a5 {[%clk
0:02:32.8]} 7. a3 {[%clk 0:02:58.2]} 7... Nd7 {[%clk 0:02:24.3]} 8. Nh3 {[%clk
0:02:56]} 8... Ngf6 {[%clk 0:02:23.2]} 9. Nxe4 {[%clk 0:02:54.8]} 9... O-O
{[%clk 0:02:23.8]} 10. Nhg5 {[%clk 0:02:49.5]} 10... h6 {[%clk 0:02:00]} 11.
Nxf6+ {[%clk 0:02:47.9]} 11... Nxf6 {[%clk 0:01:51.6]} 12. Ne4 {[%clk
0:02:41.6]} 12... b5 {[%clk 0:01:40.2]} 13. Nxf6+ {[%clk 0:02:37.3]} 13... exf6
{[%clk 0:01:36.6]} 14. Qd3 {[%clk 0:02:33.6]} 14... Qb6 {[%clk 0:01:22.8]} 15.
Qe3 {[%clk 0:02:33.5]} 15... c5 {[%clk 0:01:12.8]} 16. Bd3 {[%clk 0:02:29.9]}
16... Be6 {[%clk 0:01:09.9]} 17. Rhe1 {[%clk 0:02:27.1]} 17... Rfe8 {[%clk
0:01:05.8]} 18. Qf3 {[%clk 0:02:18.4]} 18... c4 {[%clk 0:01:00.7]} 19. Be4
{[%clk 0:02:18.6]} 19... Rac8 {[%clk 0:00:48.8]} 20. Bd5 {[%clk 0:01:59.5]}
20... cxb3 {[%clk 0:00:42.8]} 21. Bxb3 {[%clk 0:01:58.4]} 21... Bxb3 {[%clk
0:00:37.9]} 22. Rxe8+ {[%clk 0:01:58.3]} 22... Rxe8 {[%clk 0:00:37.7]} 23. cxb3
{[%clk 0:01:57.7]} 23... a4 {[%clk 0:00:31.1]} 24. Kb1 {[%clk 0:01:52.7]} 24...
axb3 {[%clk 0:00:30.3]} 25. Qxb3 {[%clk 0:01:52.4]} 25... Qxf2 {[%clk
0:00:30.1]} 26. Qxb5 {[%clk 0:01:51.3]} 26... Rd8 {[%clk 0:00:26.8]} 27. Qc6
{[%clk 0:01:47.4]} 27... Rb8 {[%clk 0:00:18.2]} 28. Ka1 {[%clk 0:01:30.8]} 28...
Qe2 {[%clk 0:00:10.6]} 29. Qf3 {[%clk 0:01:28.5]} 29... Qb5 {[%clk 0:00:09.2]}
30. Qc3 {[%clk 0:01:28.5]} 30... Qd5 {[%clk 0:00:07.1]} 31. g3 {[%clk
0:01:21.1]} 31... Qg2 {[%clk 0:00:07.3]} 32. h4 {[%clk 0:01:19.4]} 32... h5
{[%clk 0:00:07.9]} 33. Rb1 {[%clk 0:01:05.3]} 33... Ra8 {[%clk 0:00:06.9]} 34.
Qb3 {[%clk 0:00:59.6]} 34... f5 {[%clk 0:00:05.3]} 35. Bxg7 {[%clk 0:00:58.6]}
35... Kxg7 {[%clk 0:00:06.2]} 36. Rb2 {[%clk 0:00:56.3]} 36... Qf1+ {[%clk
0:00:05.3]} 37. Ka2 {[%clk 0:00:56.3]} 37... Qa6 {[%clk 0:00:05.9]} 38. d4
{[%clk 0:00:52.9]} 38... Qd6 {[%clk 0:00:05.2]} 39. d5 {[%clk 0:00:52.9]} 39...
Ra5 {[%clk 0:00:05.3]} 40. Rd2 {[%clk 0:00:51.8]} 40... Ra6 {[%clk 0:00:04.7]}
41. Rd3 {[%clk 0:00:50.5]} 41... Rb6 {[%clk 0:00:04.6]} 42. Qc4 {[%clk
0:00:48.7]} 42... Qe5 {[%clk 0:00:02.9]} 43. Qd4 {[%clk 0:00:47.7]} 43... Qxd4
{[%clk 0:00:03.4]} 44. Rxd4 {[%clk 0:00:47.9]} 44... Kf6 {[%clk 0:00:04]} 45. d6
{[%clk 0:00:44.6]} 45... Rb8 {[%clk 0:00:04]} 46. a4 {[%clk 0:00:43.5]} 46...
Ke5 {[%clk 0:00:02.5]} 47. Rd3 {[%clk 0:00:42.4]} 47... f4 {[%clk 0:00:02.2]}
48. gxf4+ {[%clk 0:00:42.1]} 48... Kxf4 {[%clk 0:00:03.1]} 49. d7 {[%clk
0:00:42.1]} 49... Rd8 {[%clk 0:00:02.2]} 50. a5 {[%clk 0:00:42.3]} 50... Kg4
{[%clk 0:00:02.8]} 51. a6 {[%clk 0:00:42.2]} 51... Kxh4 {[%clk 0:00:03.3]} 52.
a7 {[%clk 0:00:41.7]} 52... g5 {[%clk 0:00:03.9]} 53. Re3 {[%clk 0:00:38.5]}
53... Ra8 {[%clk 0:00:03.1]} 54. Kb3 {[%clk 0:00:34.6]} 54... g4 {[%clk
0:00:03.3]} 55. Re8 {[%clk 0:00:34.7]} 1-0